bitfinex-derivatives/quotes_ETHF0:USTF0_20250504
["timestamp","ask_amount","ask_price","bid_price","bid_amount"]
[1746393553740,4.29868,1833.1,1833.0,10.42866]
[1746393554130,1.09088,1833.1,1833.0,10.42866]
[1746393555230,1.09086,1833.2,1833.0,10.42866]
[1746393555439,1.09086,1833.2,1833.1,3.2627]
[1746393555638,1.09086,1833.2,1833.1,10.93722]
[1746393557536,1.09086,1833.2,1833.1,12.0281]
[1746393564549,1.09086,1833.2,1833.1,10.93722]
[1746393566354,1.09086,1833.2,1833.1,12.0281]
[1746393566854,1.09086,1833.2,1833.1,10.93722]
[1746393567957,3.2078,1833.4,1833.2,1.09082]
[1746393568150,4.29854,1833.4,1833.3,7.67452]
[1746393568350,4.29854,1833.4,1833.3,8.52582]
[1746393569557,4.29854,1833.4,1833.3,9.61658]
[1746393569852,4.29854,1833.4,1833.3,8.52582]
[1746393570461,4.29854,1833.4,1833.3,9.61658]
[1746393572166,4.29854,1833.4,1833.3,8.52582]
[1746393572367,4.29854,1833.4,1833.3,13.05858]
[1746393573068,1.09074,1833.4,1833.3,13.05858]
[1746393573368,1.09065,1833.5,1833.4,1.09068]
[1746393573569,1.09065,1833.5,1833.4,1.91818]
[1746393573871,1.09065,1833.5,1833.4,9.5927]
[1746393574471,1.09065,1833.5,1833.4,8.50202]
[1746393574766,1.09064,1833.5,1833.4,8.50202]
[1746393575067,1.09064,1833.5,1833.4,9.59272]
[1746393575669,1.09064,1833.5,1833.4,8.50202]
[1746393576169,1.09064,1833.5,1833.4,12.19002]
[1746393578072,1.09064,1833.5,1833.4,8.50202]
[1746393578571,1.09064,1833.5,1833.4,9.59272]
[1746393579073,1.09064,1833.5,1833.4,13.28072]
[1746393579564,1.09064,1833.5,1833.4,14.85422]
[1746393581173,1.09064,1833.5,1833.4,11.16622]
[1746393581572,4.29841,1833.6,1833.5,1.09064]
[1746393581773,4.29841,1833.6,1833.5,11.23686]
[1746393585677,3.2078,1833.6,1833.5,11.23686]
[1746393586178,4.29838,1833.6,1833.5,11.23686]
[1746393586874,3.2078,1833.6,1833.5,11.23686]
[1746393587072,3.2078,1833.6,1833.5,14.92486]
[1746393590678,4.29828,1833.8,1833.7,1.09052]
[1746393590978,4.29828,1833.8,1833.7,8.76504]
[1746393591376,4.29828,1833.8,1833.7,12.08724]
[1746393594175,3.2078,1833.8,1833.7,12.08724]
[1746393595076,3.2078,1833.8,1833.7,15.77524]
[1746393595580,4.29814,1834.0,1833.8,1.09041]
[1746393595776,4.29814,1834.0,1833.9,5.9288]
[1746393595977,4.29814,1834.0,1833.9,13.60332]
[1746393596680,4.29814,1834.0,1833.9,14.69372]
[1746393597885,4.29814,1834.0,1833.9,11.11452]
[1746393598083,5.10584,1834.0,1833.9,11.11452]
[1746393600384,5.10584,1834.0,1833.9,12.75222]
[1746393603286,1.89804,1834.0,1833.9,12.75222]
[1746393603587,5.10584,1834.0,1833.9,12.75222]
[1746393605682,1.89804,1834.0,1833.9,12.75222]
[1746393606185,5.10584,1834.0,1833.9,12.75222]
[1746393612591,5.41570562,1834.0,1833.9,12.75222]
[1746393613994,5.41574413,1834.0,1833.9,12.75222]
[1746393614592,5.41572243,1834.0,1833.9,12.75222]
[1746393615591,5.41578788,1834.0,1833.9,12.75222]
[1746393616091,2.20798788,1834.0,1833.9,12.75222]
[1746393616293,5.41578788,1834.0,1833.9,12.75222]
[1746393617096,2.20798788,1834.0,1833.9,12.75222]
[1746393617393,5.41585965,1834.0,1833.9,12.75222]
[1746393618090,5.41585965,1834.0,1833.9,13.84262]
[1746393618705,2.20805965,1834.0,1833.9,13.84262]
[1746393618884,4.60815965,1834.0,1833.9,13.84262]
[1746393619088,1.40035965,1834.0,1833.9,13.84262]
[1746393619595,4.60815965,1834.0,1833.9,13.84262]
[1746393619996,3.51781965,1834.0,1833.9,13.84262]
[1746393620194,4.60815965,1834.0,1833.9,13.84262]
[1746393621098,8.29615965,1834.0,1833.9,13.84262]
[1746393621284,7.20581965,1834.0,1833.9,13.84262]
[1746393622297,3.51781965,1834.0,1833.9,13.84262]
[1746393622490,3.2078,1834.0,1833.9,13.84262]
[1746393622690,3.51780841,1834.0,1833.9,13.84262]
[1746393622891,3.51780977,1834.0,1833.9,13.84262]
[1746393623798,3.2078,1834.0,1833.9,13.84262]
[1746393625798,3.51781353,1834.0,1833.9,13.84262]
[1746393626097,3.51781475,1834.0,1833.9,13.84262]
[1746393627796,3.2078,1834.0,1833.9,13.84262]
[1746393632102,3.2078,1834.0,1833.9,17.53062]
[1746393633405,3.2078,1834.0,1833.9,13.84262]
[1746393633707,6.41379936,1834.3,1834.1,1.09024]
[1746393633906,3.51768289,1834.2,1834.1,1.09024]
[1746393634099,3.51768289,1834.2,1834.1,2.67604]
[1746393634603,4.60791289,1834.2,1834.1,2.67604]
[1746393635004,3.61149936,1834.3,1834.2,1.09023]
[1746393635304,3.61149936,1834.3,1834.2,14.58335]
[1746393637301,3.61149936,1834.3,1834.2,18.27135]
[1746393638603,5.44851155,1834.4,1834.2,22.18112]
[1746393638808,10.47248207,1834.6,1834.5,1.09005]
[1746393638809,7.26468207,1834.6,1834.5,1.09005]
[1746393639106,7.26468207,1834.6,1834.5,15.89157]
[1746393639699,7.26468207,1834.6,1834.5,17.60137]
[1746393640909,3.62673585,1834.8,1834.7,1.08993]
[1746393641301,3.62673585,1834.8,1834.6,3.66527]
[1746393641503,1.08993,1834.7,1834.6,3.66527]
[1746393641710,2.68143,1834.7,1834.6,3.66527]
[1746393642009,2.3952,1834.7,1834.6,3.66527]
[1746393642202,2.3952,1834.7,1834.6,4.49497]
[1746393642907,3.48513,1834.7,1834.6,4.49497]
[1746393644911,3.48513,1834.7,1834.6,3.405]
[1746393645811,3.48513,1834.7,1834.6,4.49499]
[1746393646310,1.91268,1834.8,1834.7,1.08993]
[1746393646512,1.91268,1834.8,1834.7,2.79153]
[1746393646713,0.8228,1834.8,1834.7,2.79153]
[1746393647412,4.29764,1834.9,1834.7,2.79153]
[1746393647710,4.29764,1834.9,1834.8,1.7016]
[1746393648206,3.2078,1834.9,1834.8,2.79147]
[1746393648513,6.01121,1834.9,1834.8,2.79147]
[1746393648910,4.9214,1834.9,1834.8,2.79147]
[1746393649615,3.2078,1834.9,1834.8,2.79147]
[1746393649914,3.2078,1834.9,1834.8,10.46599]
[1746393650707,4.29761,1834.9,1834.8,10.46599]
[1746393651815,3.2078,1834.9,1834.8,10.46599]
[1746393653114,1.94929,1835.0,1834.8,10.46599]
[1746393653618,3.64239,1835.0,1834.8,10.46599]
[1746393655018,1.08981,1834.9,1834.8,10.46599]
[1746393655719,1.08981,1834.9,1834.8,9.37612]
[1746393656123,1.08981,1834.9,1834.8,10.19362]
[1746393656919,1.08981,1834.9,1834.8,11.28349]
[1746393658719,1.08981,1834.9,1834.8,10.19362]
[1746393659720,1.08981,1834.9,1834.8,11.28349]
[1746393660923,1.08981,1834.9,1834.8,10.19362]
[1746393661723,1.08981,1834.9,1834.8,11.28349]
[1746393662824,1.08977,1835.0,1834.9,1.08981]
[1746393663017,1.08977,1835.0,1834.9,11.22133]
[1746393663219,1.08977,1835.0,1834.9,3.54681]
[1746393663625,1.08977,1835.0,1834.9,2.457]
[1746393665025,1.08977,1835.0,1834.9,3.54681]
[1746393666527,1.08977,1835.0,1834.9,2.457]
[1746393666824,1.08977,1835.0,1834.9,3.54681]
[1746393667020,1.08977,1835.0,1834.9,2.457]
[1746393667726,1.08977,1835.0,1834.9,3.54681]
[1746393670124,1.38858396,1835.0,1834.9,3.54681]
[1746393670327,1.08977,1835.0,1834.9,3.54681]
[1746393670624,1.08977,1835.0,1834.9,2.457]
[1746393671017,3.06131672,1835.0,1834.9,2.457]
[1746393672321,2.76247,1835.0,1834.9,2.457]
[1746393672521,3.06134924,1835.0,1834.9,2.457]
[1746393672722,2.76247,1835.0,1834.9,2.457]
[1746393672923,3.06135178,1835.0,1834.9,2.457]
[1746393673729,3.06135178,1835.0,1834.9,10.13152]
[1746393674529,6.26909242,1835.0,1834.9,10.13152]
[1746393675126,3.06129242,1835.0,1834.9,10.13152]
[1746393675625,6.26909242,1835.0,1834.9,10.13152]
[1746393676023,4.59639242,1835.0,1834.9,10.13152]
[1746393676223,4.59654493,1835.0,1834.9,10.13152]
[1746393676831,6.28934493,1835.0,1834.9,10.13152]
[1746393677830,5.99037,1835.0,1834.9,10.13152]
[1746393678023,6.28952678,1835.0,1834.9,10.13152]
[1746393679530,6.28952678,1835.0,1834.9,7.67452]
[1746393679731,1.09005,1834.5,1834.4,7.29053732]
[1746393679926,4.59708245,1834.5,1834.4,7.29053732]
[1746393680229,8.28500175,1834.5,1834.4,7.29053732]
[1746393680826,10.02050175,1834.5,1834.4,8.90513732]
[1746393681022,3.688,1834.5,1834.4,15.77696732]
[1746393681225,1.09001,1834.6,1834.4,15.77696732]
[1746393681425,1.09001,1834.6,1834.5,9.05942]
[1746393681625,1.09001,1834.6,1834.5,10.14947]
[1746393681929,5.14597,1834.7,1834.5,10.14947]
[1746393682229,5.14597,1834.7,1834.6,7.42582]
[1746393682534,4.29777,1834.7,1834.6,7.42582]
[1746393686333,4.29773,1834.7,1834.6,7.42582]
[1746393689032,4.29773,1834.7,1834.6,8.51581]
[1746393689238,1.08991,1834.8,1834.6,8.51581]
[1746393689537,1.08991,1834.8,1834.7,2.4945]
[1746393689730,1.08991,1834.8,1834.7,8.27622]
[1746393710170,1.38819991,1834.8,1834.7,8.27622]
[1746393710768,1.38820081,1834.8,1834.7,8.27622]
[1746393712469,1.38833027,1834.8,1834.7,8.27622]
[1746393714166,1.08991,1834.8,1834.7,8.27622]
[1746393714460,1.38837589,1834.8,1834.7,8.27622]
[1746393715967,1.38839065,1834.8,1834.7,8.27622]
[1746393717670,1.38843274,1834.8,1834.7,8.27622]
[1746393719466,1.38842627,1834.8,1834.7,8.27622]
[1746393722371,1.38840277,1834.8,1834.7,8.27622]
[1746393723865,1.38840079,1834.8,1834.7,8.27622]
[1746393725580,1.08991,1834.8,1834.7,8.27622]
[1746393725771,1.38841396,1834.8,1834.7,8.27622]
[1746393726272,1.38841276,1834.8,1834.7,8.27622]
[1746393726876,1.38841276,1834.8,1834.7,1.6755]
[1746393727077,3.11531276,1834.8,1834.7,1.6755]
[1746393728980,3.11535492,1834.8,1834.7,1.6755]
[1746393730184,1.08999,1834.6,1834.5,0.8392]
[1746393730381,4.59633492,1834.6,1834.5,3.3022]
[1746393730879,4.59634902,1834.6,1834.5,3.3022]
[1746393733785,4.59612302,1834.6,1834.5,3.3022]
[1746393734186,4.59611441,1834.6,1834.5,3.3022]
[1746393734988,4.59607888,1834.6,1834.5,3.3022]
[1746393735788,4.29779,1834.6,1834.5,3.3022]
[1746393735991,4.59604602,1834.6,1834.5,3.3022]
[1746393738879,4.59604602,1834.6,1834.5,9.08392]
[1746393739276,4.59597925,1834.6,1834.5,9.08392]
[1746393739477,4.59597925,1834.6,1834.5,3.3022]
[1746393739680,4.59597925,1834.6,1834.5,9.08392]
[1746393741086,4.59597935,1834.6,1834.5,9.08392]
[1746393742685,4.59596983,1834.6,1834.5,9.08392]
[1746393744394,4.59598295,1834.6,1834.5,9.08392]
[1746393745694,1.38818295,1834.6,1834.5,9.08392]
[1746393745993,4.59598295,1834.6,1834.5,9.08392]
[1746393746195,4.59599061,1834.6,1834.5,9.08392]
[1746393747690,4.59599061,1834.6,1834.5,2.474]
[1746393747896,6.94652073,1834.6,1834.5,2.474]
[1746393748096,10.63452073,1834.6,1834.5,2.474]
[1746393749398,10.634529,1834.6,1834.5,2.474]
[1746393749797,10.634529,1834.6,1834.5,8.25572]
[1746393751106,10.63454092,1834.6,1834.5,8.25572]
[1746393751705,7.42674092,1834.6,1834.5,8.25572]
[1746393751904,10.63454178,1834.6,1834.5,8.25572]
[1746393752104,10.63454178,1834.6,1834.5,1.6348]
[1746393752802,10.6345639,1834.6,1834.5,1.6348]
[1746393754513,10.63457293,1834.6,1834.5,1.6348]
[1746393756208,10.63462942,1834.6,1834.5,1.6348]
[1746393756605,10.63462942,1834.6,1834.3,0.8196]
[1746393756811,4.29791,1834.4,1834.3,8.16732]
[1746393757110,8.28424942,1834.4,1834.3,8.16732]
[1746393757613,9.93524942,1834.4,1834.3,8.16732]
[1746393759613,9.9352859,1834.4,1834.3,8.16732]
[1746393763109,9.93524504,1834.4,1834.3,8.16732]
[1746393764521,6.72744504,1834.4,1834.3,8.16732]
[1746393764819,9.93521815,1834.4,1834.3,8.16732]
[1746393766420,9.9351997,1834.4,1834.3,8.16732]
[1746393768118,9.93520024,1834.4,1834.3,8.16732]
[1746393769117,6.24720024,1834.4,1834.3,8.16732]
[1746393769824,5.94891,1834.4,1834.3,8.16732]
[1746393770018,6.24721714,1834.4,1834.3,8.16732]
[1746393770217,9.93521714,1834.4,1834.3,8.16732]
[1746393771522,9.63691,1834.4,1834.3,8.16732]
[1746393771824,9.93521567,1834.4,1834.3,8.16732]
[1746393772618,9.93521567,1834.4,1834.3,2.3856]
[1746393772922,9.93521567,1834.4,1834.3,8.16732]
[1746393773322,9.93524117,1834.4,1834.3,8.16732]
[1746393774927,8.28424117,1834.4,1834.3,8.16732]
[1746393775118,8.2842174,1834.4,1834.3,8.16732]
[1746393775423,4.5962174,1834.4,1834.3,8.16732]
[1746393776726,4.59626749,1834.4,1834.3,8.16732]
[1746393778425,4.59628533,1834.4,1834.3,8.16732]
[1746393780124,4.59631499,1834.4,1834.3,8.16732]
[1746393781022,4.29791,1834.4,1834.3,8.16732]
[1746393781222,4.59633873,1834.4,1834.3,8.16732]
[1746393784432,4.59651304,1834.4,1834.3,8.16732]
[1746393784729,4.59651251,1834.4,1834.3,8.16732]
[1746393790637,4.29791,1834.4,1834.3,8.16732]
[1746393802341,3.62550052,1834.6,1834.3,8.16732]
[1746393802541,7.92332052,1834.6,1834.5,5.78172]
[1746393802840,5.0139084,1834.6,1834.5,5.78172]
[1746393803046,7.92332052,1834.6,1834.5,9.10742]
[1746393805646,4.71552052,1834.6,1834.5,9.10742]
[1746393806339,7.92332052,1834.6,1834.5,9.10742]
[1746393807450,4.29782,1834.6,1834.5,9.10742]
[1746393811449,1.09002,1834.6,1834.5,9.10742]
[1746393811652,4.29782,1834.6,1834.5,10.19747]
[1746393812651,1.09002,1834.6,1834.5,10.19747]
[1746393812860,4.29782,1834.6,1834.5,10.19747]
[1746393813151,4.29782,1834.6,1834.5,5.78172]
[1746393813347,4.5960945,1834.6,1834.5,5.78172]
[1746393813547,4.59610004,1834.6,1834.5,5.78172]
[1746393813848,6.30540004,1834.6,1834.5,5.78172]
[1746393816951,6.30553831,1834.6,1834.5,5.78172]
[1746393817145,3.09773831,1834.6,1834.5,5.78172]
[1746393817549,6.30553831,1834.6,1834.5,5.78172]
[1746393818551,6.00712,1834.6,1834.5,5.78172]
[1746393818851,6.3055642,1834.6,1834.5,5.78172]
[1746393819153,1.09005,1834.5,1834.4,1.7034]
[1746393819454,1.09005,1834.5,1834.4,7.48512]
[1746393823854,2.79055,1834.5,1834.4,7.48512]
[1746393826858,3.08908545,1834.5,1834.4,7.48512]
[1746393827048,1.99904053,1834.5,1834.4,7.48512]
[1746393827253,1.388586,1834.5,1834.4,7.48512]
[1746393827759,1.09005,1834.5,1834.4,7.48512]
[1746393828361,1.38860285,1834.5,1834.4,7.48512]
[1746393828556,1.3886002,1834.5,1834.4,7.48512]
[1746393828859,1.38860548,1834.5,1834.4,7.48512]
[1746393829253,1.38860478,1834.5,1834.4,7.48512]
[1746393830659,1.09005,1834.5,1834.4,7.48512]
[1746393833462,4.29785,1834.5,1834.4,7.48512]
[1746393837261,1.09005,1834.5,1834.4,7.48512]
[1746393837562,4.29785,1834.5,1834.4,7.48512]
[1746393838360,4.5964861,1834.5,1834.4,7.48512]
[1746393838565,1.3886861,1834.5,1834.4,7.48512]
[1746393839069,1.09005,1834.5,1834.4,7.48512]
[1746393839270,1.38869036,1834.5,1834.4,7.48512]
[1746393840566,1.38873906,1834.5,1834.4,7.48512]
[1746393840868,1.38873906,1834.5,1834.4,8.57523]
[1746393842369,4.59653906,1834.5,1834.4,8.57523]
[1746393843364,4.59661914,1834.5,1834.4,8.57523]
[1746393843566,4.59661914,1834.5,1834.4,7.48512]
[1746393843975,4.59661914,1834.5,1834.4,8.57523]
[1746393845176,4.59662989,1834.5,1834.4,7.48512]
[1746393846473,4.59665214,1834.5,1834.4,7.48512]
[1746393846675,4.59665214,1834.5,1834.4,8.57523]
[1746393846875,4.59665215,1834.5,1834.4,8.57523]
[1746393848478,4.59662073,1834.5,1834.4,8.57523]
[1746393850276,4.59664061,1834.5,1834.4,8.57523]
[1746393851780,4.59668105,1834.5,1834.4,8.57523]
[1746393852879,4.5966904,1834.5,1834.4,8.57523]
[1746393854582,4.5966904,1834.5,1834.4,1.7034]
[1746393854971,6.1964904,1834.5,1834.4,1.7034]
[1746393855172,6.1965197,1834.5,1834.4,1.7034]
[1746393855773,4.5967197,1834.5,1834.4,8.57523]
[1746393856379,4.5967197,1834.5,1834.4,7.48512]
[1746393856884,6.19651744,1834.5,1834.4,7.48512]
[1746393858580,6.19653357,1834.5,1834.4,7.48512]
[1746393859683,6.19653357,1834.5,1834.4,8.57523]
[1746393860183,3.50668357,1834.5,1834.4,8.57523]
[1746393860381,3.2078,1834.5,1834.4,8.57523]
[1746393861082,3.2078,1834.5,1834.4,12.26323]
[1746393861882,6.83330052,1834.6,1834.5,1.09005]
[1746393862087,6.83330052,1834.6,1834.5,10.08947]
[1746393862886,3.2078,1834.6,1834.5,10.08947]
[1746393863577,4.29779,1834.6,1834.5,10.08947]
[1746393865984,1.08999,1834.6,1834.5,10.08947]
[1746393866387,4.29779,1834.6,1834.5,10.08947]
[1746393866685,1.08999,1834.6,1834.5,10.08947]
[1746393871887,1.08999,1834.6,1834.5,8.99942]
[1746393872688,1.08999,1834.6,1834.5,10.08947]
[1746393874684,9.27580052,1834.8,1834.5,10.08947]
[1746393874985,1.38836041,1834.7,1834.6,7.48362]
[1746393875384,1.38836041,1834.7,1834.6,1.7019]
[1746393875583,1.38836698,1834.7,1834.6,1.7019]
[1746393875790,2.96376698,1834.7,1834.6,1.7019]
[1746393877289,2.96377115,1834.7,1834.6,1.7019]
[1746393878389,6.17157115,1834.7,1834.6,1.7019]
[1746393878889,6.17157977,1834.7,1834.6,1.7019]
[1746393879390,5.08164977,1834.7,1834.3,10.73353732]
[1746393879587,4.29787,1834.5,1834.4,5.78172]
[1746393879784,4.29787,1834.5,1834.4,6.63822]
[1746393879984,4.29787,1834.5,1834.4,0.8565]
[1746393880590,4.29787,1834.5,1834.4,1.94661]
[1746393881087,1.09007,1834.5,1834.4,1.94661]
[1746393881289,4.29787,1834.5,1834.4,1.94661]
[1746393881791,1.09007,1834.5,1834.4,1.94661]
[1746393882090,4.29787,1834.5,1834.4,1.94661]
[1746393885792,4.29787,1834.5,1834.4,6.63822]
[1746393886891,4.29787,1834.5,1834.4,7.72833]
[1746393888089,1.09017,1834.3,1834.2,12.65484732]
[1746393888295,1.09017,1834.3,1834.2,19.26596732]
[1746393890496,4.29797,1834.3,1834.2,19.26596732]
[1746393891090,4.29797,1834.3,1834.2,11.97543]
[1746393896796,4.29797,1834.3,1834.2,10.88522]
[1746393897493,4.29797,1834.3,1834.2,11.97545]
[1746393899794,4.29797,1834.3,1834.2,10.88522]
[1746393900293,3.52864,1834.4,1834.2,12.56052]
[1746393900494,4.71558052,1834.5,1834.4,1.09011]
[1746393900794,3.62550052,1834.5,1834.4,6.87183]
[1746393900998,3.62550052,1834.5,1834.4,8.51223]
[1746393901197,3.62550052,1834.5,1834.4,12.20023]
[1746393901699,4.71555052,1834.5,1834.4,5.3284]
[1746393901897,9.64645052,1834.5,1834.4,5.3284]
[1746393902104,6.88675,1834.5,1834.4,1.6404]
[1746393902300,7.18507617,1834.5,1834.4,1.6404]
[1746393902498,7.18507369,1834.5,1834.4,1.6404]
[1746393902699,7.18507695,1834.5,1834.4,1.6404]
[1746393903001,6.88675,1834.5,1834.4,1.6404]
[1746393903201,7.18507087,1834.5,1834.4,1.6404]
[1746393903504,7.18507686,1834.5,1834.4,1.6404]
[1746393904605,7.18517499,1834.5,1834.4,1.6404]
[1746393905104,10.87317499,1834.5,1834.4,1.6404]
[1746393907099,10.87321713,1834.5,1834.4,1.6404]
[1746393907298,7.18521713,1834.5,1834.4,1.6404]
[1746393908305,1.09017,1834.3,1834.2,1.6605]
[1746393908698,1.09017,1834.3,1834.2,7.44222]
[1746393909608,1.09017,1834.3,1834.2,9.06842]
[1746393911604,1.09017,1834.3,1834.2,10.15865]
[1746393914712,1.09017,1834.3,1834.2,4.37693]
[1746393915014,1.09017,1834.3,1834.2,10.15865]
[1746393915514,2.72415,1834.4,1834.2,10.15865]
[1746393915813,2.72415,1834.4,1834.3,7.37252]
[1746393916011,3.02280109,1834.4,1834.3,7.37252]
[1746393916213,2.72415,1834.4,1834.3,1.5908]
[1746393917513,3.02285772,1834.4,1834.3,1.5908]
[1746393919014,3.02284018,1834.4,1834.3,1.5908]
[1746393919818,2.72415,1834.4,1834.3,7.37252]
[1746393922012,2.72415,1834.4,1834.3,8.46269]
[1746393922616,2.72415,1834.4,1834.3,7.37252]
[1746393942932,3.02297992,1834.4,1834.3,7.37252]
[1746393943326,3.02298365,1834.4,1834.3,7.37252]
[1746393945029,3.02299648,1834.4,1834.3,7.37252]
[1746393945833,1.38899648,1834.4,1834.3,7.37252]
[1746393948431,1.38903132,1834.4,1834.3,7.37252]
[1746393953429,1.38904865,1834.4,1834.3,7.37252]
[1746393955139,1.38904924,1834.4,1834.3,7.37252]
[1746393956941,1.38905153,1834.4,1834.3,7.37252]
[1746393958535,1.38905119,1834.4,1834.3,7.37252]
[1746393959945,1.09015,1834.4,1834.3,7.37252]
[1746393960439,1.38892882,1834.4,1834.3,7.37252]
[1746393960632,1.09015,1834.4,1834.3,7.37252]
[1746393961037,1.38892403,1834.4,1834.3,7.37252]
[1746393961345,1.09015,1834.4,1834.3,7.37252]
[1746393961545,1.38893283,1834.4,1834.3,7.37252]
[1746393962143,1.38891563,1834.4,1834.3,7.37252]
[1746393963048,1.38892609,1834.4,1834.3,7.37252]
[1746393964148,3.79592609,1834.4,1834.3,7.37252]
[1746393964746,3.79589469,1834.4,1834.3,7.37252]
[1746393966449,3.79590414,1834.4,1834.3,7.37252]
[1746393968249,3.79589088,1834.4,1834.3,7.37252]
[1746393969752,3.79586618,1834.4,1834.3,7.37252]
[1746393970146,7.48386618,1834.4,1834.3,7.37252]
[1746393970353,5.07686618,1834.4,1834.3,7.37252]
[1746393970553,5.07683366,1834.4,1834.3,7.37252]
[1746393970754,5.07684705,1834.4,1834.3,7.37252]
[1746393971153,1.38884443,1834.4,1834.3,7.37252]
[1746393971356,1.3888447,1834.4,1834.3,7.37252]
[1746393971653,1.38884212,1834.4,1834.3,7.37252]
[1746393971849,1.09015,1834.4,1834.3,7.37252]
[1746393972051,1.38884625,1834.4,1834.3,7.37252]
[1746393972251,1.09015,1834.4,1834.3,7.37252]
[1746393972554,1.38884699,1834.4,1834.3,7.37252]
[1746393972755,1.09015,1834.4,1834.3,7.37252]
[1746393972955,1.38884604,1834.4,1834.3,7.37252]
[1746393973655,1.09023,1834.2,1834.1,7.29053732]
[1746393973857,4.59672604,1834.2,1834.1,9.01223732]
[1746393974153,4.59672604,1834.2,1834.1,14.79395732]
[1746393974755,4.59677678,1834.2,1834.1,14.79395732]
[1746393976451,4.59677678,1834.2,1834.1,7.50342]
[1746393978358,4.59666898,1834.2,1834.1,7.50342]
[1746393979655,4.59656526,1834.2,1834.1,7.50342]
[1746393979960,4.59656685,1834.2,1834.1,7.50342]
[1746393981664,4.29803,1834.2,1834.1,7.50342]
[1746393981958,4.59660498,1834.2,1834.1,7.50342]
[1746393982161,4.29803,1834.2,1834.1,7.50342]
[1746393983061,4.59658777,1834.2,1834.1,7.50342]
[1746393983256,4.29803,1834.2,1834.1,7.50342]
[1746393984264,1.09023,1834.2,1834.1,7.50342]
[1746393984462,4.29803,1834.2,1834.1,7.50342]
[1746393985564,4.59654927,1834.2,1834.1,7.50342]
[1746393985864,4.29803,1834.2,1834.1,7.50342]
[1746393990165,4.59656929,1834.2,1834.1,7.50342]
[1746393990467,4.29803,1834.2,1834.1,7.50342]
[1746393990868,4.59661875,1834.2,1834.1,7.50342]
[1746393991769,4.5966495,1834.2,1834.1,7.50342]
[1746393996870,4.29803,1834.2,1834.1,7.50342]
[1746393997058,4.59678522,1834.2,1834.1,7.50342]
[1746393998471,1.38904923,1834.2,1834.1,7.50342]
[1746393998772,4.59684923,1834.2,1834.1,7.50342]
[1746393999071,4.29803,1834.2,1834.1,7.50342]
[1746393999272,1.38905209,1834.2,1834.1,7.50342]
[1746393999472,4.59685209,1834.2,1834.1,7.50342]
[1746393999873,1.38905209,1834.2,1834.1,7.50342]
[1746394000069,4.59685209,1834.2,1834.1,7.50342]
[1746394000373,4.59695084,1834.2,1834.1,7.50342]
[1746394001069,4.29803,1834.2,1834.1,7.50342]
[1746394001280,4.59679715,1834.2,1834.1,7.50342]
[1746394002069,4.29803,1834.2,1834.1,7.50342]
[1746394002374,4.59678275,1834.2,1834.1,7.50342]
[1746394003876,4.59700988,1834.2,1834.1,7.50342]
[1746394005577,4.5970073,1834.2,1834.1,7.50342]
[1746394006076,1.3892073,1834.2,1834.1,7.50342]
[1746394006275,4.5970073,1834.2,1834.1,7.50342]
[1746394007273,4.59700131,1834.2,1834.1,7.50342]
[1746394008971,4.29803,1834.2,1834.1,7.50342]
[1746394009178,1.38921438,1834.2,1834.1,7.50342]
[1746394009378,4.59701438,1834.2,1834.1,7.50342]
[1746394012583,4.59697574,1834.2,1834.1,7.50342]
[1746394015885,4.59699058,1834.2,1834.1,7.50342]
[1746394016483,1.38919058,1834.2,1834.1,7.50342]
[1746394016787,4.59699058,1834.2,1834.1,7.50342]
[1746394017086,1.38919058,1834.2,1834.1,7.50342]
[1746394017384,4.59699058,1834.2,1834.1,7.50342]
[1746394017572,4.59698828,1834.2,1834.1,7.50342]
[1746394019385,4.59699864,1834.2,1834.1,7.50342]
[1746394020586,4.59700123,1834.2,1834.1,7.50342]
[1746394020782,4.59699951,1834.2,1834.1,7.50342]
[1746394022287,8.22250003,1834.2,1834.1,7.50342]
[1746394023796,8.22249168,1834.2,1834.1,7.50342]
[1746394025480,8.22246329,1834.2,1834.1,7.50342]
[1746394027191,8.22244729,1834.2,1834.1,7.50342]
[1746394027587,8.22245154,1834.2,1834.1,7.50342]
[1746394028791,7.92353052,1834.2,1834.1,7.50342]
[1746394028984,8.22248781,1834.2,1834.1,7.50342]
[1746394032396,1.38918729,1834.2,1834.1,7.50342]
[1746394032589,4.59698729,1834.2,1834.1,7.50342]
[1746394035696,4.59722581,1834.2,1834.1,7.50342]
[1746394037396,4.59724834,1834.2,1834.1,7.50342]
[1746394038390,1.38944834,1834.2,1834.1,7.50342]
[1746394039293,1.38942959,1834.2,1834.1,7.50342]
[1746394040897,1.3894532,1834.2,1834.1,7.50342]
[1746394041597,4.5972532,1834.2,1834.1,7.50342]
[1746394042599,4.59728828,1834.2,1834.1,7.50342]
[1746394049605,4.59734509,1834.2,1834.1,7.50342]
[1746394051403,4.59734342,1834.2,1834.1,7.50342]
[1746394052406,4.59766276,1834.2,1834.1,7.50342]
[1746394053104,4.597641,1834.2,1834.1,7.50342]
[1746394054810,4.59768016,1834.2,1834.1,7.50342]
[1746394056510,4.29803,1834.2,1834.1,7.50342]
[1746394056810,4.5976628,1834.2,1834.1,7.50342]
[1746394057110,4.59766316,1834.2,1834.1,7.50342]
[1746394057311,4.59764025,1834.2,1834.1,7.50342]
[1746394060114,4.59767006,1834.2,1834.1,7.50342]
[1746394060413,1.38987006,1834.2,1834.1,7.50342]
[1746394062006,1.38985225,1834.2,1834.1,7.50342]
[1746394063614,1.3898705,1834.2,1834.1,7.50342]
[1746394064010,1.3898705,1834.2,1834.1,8.5937]
[1746394064216,1.3898705,1834.2,1834.1,7.50342]
[1746394064514,1.09023,1834.2,1834.1,7.50342]
[1746394065614,1.09023,1834.2,1834.1,8.5937]
[1746394065915,1.09023,1834.2,1834.1,7.50342]
[1746394071524,1.09023,1834.2,1834.1,1.7217]
[1746394071724,1.09023,1834.2,1834.1,10.94042]
[1746394072619,1.09023,1834.2,1834.1,5.1587]
[1746394072813,1.09023,1834.2,1834.1,10.94042]